Cogmind - Beta 13 @@@ ROGUE MODE // 2024.03.17 @ 11:50:29 Player: Jezoensis Result: Destroyed by as-06123 with Assembled F-torch Performance ------------- Evolutions (0) 0 Regions Visited (2) 400 Robots Destroyed (34) 170 Value Destroyed (583) 583 Prototype IDs (3) 60 Alien Tech Used (0) 0 Bonus (0) 0 TOTAL SCORE: 1213 Bonus ------- None Cogmind --------- Core Integrity 0/250 Matter 285/300 Energy 125/125 System Corruption 0% Temperature Warm (190) Movement Rolling (95) Ox1 Location -10/Mines Parts ------- > --- POWER (1) -------- Light Ion Engine > --- PROPULSION (2) --- Wheel Wheel > --- UTILITY (2) ------ Large Storage Unit Structural Scanner > --- WEAPON (2) ------- Improved Medium Laser Improved Assault Rifle > --- INVENTORY (15) --- Wheel Medium Storage Unit High-capacity Matter Pod (200) Seismic Detector Improved Medium Laser Grenade Launcher Mining Laser Peak State ------------ > --- POWER ------------ Ion Engine > --- PROPULSION ------- Wheel Wheel > --- UTILITY ---------- Medium Storage Unit Improved Terrain Scanner > --- WEAPON ----------- Improved Medium Laser Improved Assault Rifle > --- INVENTORY -------- Ion Engine Light Treads Light Treads Compact Wheel High-capacity Matter Pod Seismic Detector Medium Laser Improved Assault Rifle Grenade Launcher Mining Laser [Rating: 14] Favorites ----------- Power Ion Engine Engine Ion Engine Propulsion Wheel Treads Light Treads Wheel Wheel Utility Large Storage Unit Device Seismic Detector Storage Large Storage Unit Weapon Improved Medium Laser Energy Gun Improved Medium Laser Ballistic Gun Improved Assault Rifle Launcher Grenade Launcher Special Weapon Mining Laser Build | -11 -10 -10 ------- Run | Yrd Mat Min Slots Evolved . | . . . Power . | . . . Propulsion . | . . . Utility . | . . . Weapon . | . . . Parts Attached 48 | 8 17 23 Power 3 | 1 1 1 Engine 3 | 1 1 1 Core . | . . . Reactor . | . . . Propulsion 20 | 3 10 7 Treads 7 | . 4 3 Leg . | . . . Wheel 13 | 3 6 4 Hover . | . . . Flight . | . . . Utility 11 | 2 3 6 Device 8 | 1 1 6 Storage 3 | 1 2 . Processor . | . . . Hackware . | . . . Protection . | . . . Artifact . | . . . Weapon 14 | 2 3 9 Energy Gun 5 | 1 2 2 Energy Cannon . | . . . Ballistic Gun 6 | 1 1 4 Ballistic Cannon . | . . . Launcher 1 | . . 1 Special Weapon 2 | . . 2 Impact Weapon . | . . . Slashing Weapon . | . . . Piercing Weapon . | . . . Special Melee Weapon . | . . . Unidentified Prototypes 2 | . 2 . Parts Lost 11 | . 3 8 Power 2 | . 1 1 Propulsion 3 | . . 3 Utility 3 | . 1 2 Weapon 3 | . 1 2 Highest Loss Streak 5 | . 2 5 To Critical Strikes 1 | . . 1 Average Slot Usage (%) 95 | . 99 92 Engine 10 | . 14 8 Treads 2 | . 3 1 Wheel 25 | . 24 26 Device 13 | . 13 13 Storage 14 | . 14 14 Energy Gun 13 | . 13 13 Ballistic Gun 13 | . 13 13 Naked Turns . | . . . Heaviest Build 32 | 14 32 32 Greatest Support 26 | 20 26 20 Greatest Overweight (x) 3 | . 2 3 Average Overweight (x) . | . . 1 Largest Inventory Capacity 15 | 8 15 15 Average Capacity 13 | 5 11 15 Most Carried 12 | 7 12 11 Average Carried 8 | 4 9 8 Final Capacity 15 | 8 15 15 Final Carried 11 | 7 11 7 Class Distribution -------------------- 100% | Mutant Dominant Class ---------------- Mutant | -10/Materials Mutant | -10/Mines Resources | -11 -10 -10 ----------- Run | Yrd Mat Min Matter Collected 1112 | 208 355 549 Remotely . | . . . Salvage Created 1026 | 31 561 434 Parts 66 | 6 37 23 Haulers Intercepted 1 | . 1 . Recyclers Shooed 1 | . 1 . Parts Field Recycled . | . . . Retrieved Matter . | . . . Parts Self-Destructed . | . . . Prevented . | . . . Kills | -11 -10 -10 ------- Run | Yrd Mat Min Combat Hostiles Destroyed 26 | . 13 13 Guns 26 | . 13 13 Classes Destroyed 10 | 1 6 3 Worker 2 | . . 2 Builder 3 | . 2 1 Tunneler 5 | 2 . 3 Hauler 1 | . 1 . Recycler 2 | . 1 1 Watcher 2 | . 2 . Swarmer 9 | . 6 3 Grunt 9 | . 7 2 Demolisher 1 | . . 1 Assembled 7 | . . 7 Best Kill Streak 5 | 2 4 5 Combat Bots Only 4 | . 4 3 Max Kills in Single Turn 2 | 1 2 2 Gunslinging 1 | . . 1 Exploded . | . . . Melee . | . . . Uniques/NPCs Destroyed . | . . . Combat | -11 -10 -10 -------- Run | Yrd Mat Min Hostile Shots Fired 122 | . 69 53 Missed 25 | . 9 16 Damage Taken 1445 | . 620 825 Core 253 | . 102 151 Absorbed by Shields . | . . . Core Remaining (%) 100 | 100 . . Volleys Fired 93 | 6 41 46 Largest 2 | 2 2 2 Hottest 100 | 70 79 100 Shots Fired 182 | 11 82 89 Gun 179 | 11 82 86 Cannon . | . . . Launcher . | . . . Special 3 | . . 3 Kinetic 90 | 6 41 43 Thermal 92 | 5 41 46 Explosive . | . . . Electromagnetic . | . . . Robot Hit Streak 16 | 6 16 13 Robot Miss Streak 3 | 3 3 3 Penetration Max . | . . . Secondary Targets 4 | . . 4 Max Gunslinging Chain 1 | . . 1 Shots Hit Robots 117 | 7 56 54 Core Hits 51 | 2 22 27 Critical Kills . | . . . Critical Parts Destroyed . | . . . Critical Strikes 5 | . 2 3 Burn 5 | . 2 3 Melee Attacks . | . . . Impact . | . . . Slashing . | . . . Piercing . | . . . Sneak Attacks . | . . . Combat Hostiles . | . . . Follow-up Attacks . | . . . Damage Inflicted 1940 | 70 969 901 Guns 1940 | 70 969 901 Cannons . | . . . Explosions . | . . . Melee . | . . . Ramming . | . . . Kinetic 964 | 33 473 458 Thermal 976 | 37 496 443 Explosive . | . . . Electromagnetic . | . . . Impact . | . . . Slashing . | . . . Piercing . | . . . Highest Corruption . | . . . Average Corruption . | . . . Corruption Purged . | . . . Corruption Blocked . | . . . Overload Shots . | . . . Overflow Damage . | . . . Projectiles . | . . . Explosions . | . . . Melee . | . . . Knockbacks . | . . . Impact . | . . . Kinetic . | . . . Secondary . | . . . Self-Inflicted Damage . | . . . Shots . | . . . Rammed . | . . . Targets Rammed . | . . . Kicked . | . . . Crushed . | . . . Highest Temperature 352 | 80 352 170 Average Temperature 68 | 34 96 30 Received Heat Transfer 517 | . 288 229 Effects 1 | . 1 . Matter Decay 1 | . 1 . Siege Activations . | . . . Robots Corrupted . | . . . Combat Hostiles . | . . . Parts Fried . | . . . Impact Corruptions . | . . . Robots Melted . | . . . Combat Hostiles . | . . . Parts Melted 1 | . 1 . Heat Transferred 2590 | 111 1295 1184 Parts Sabotaged . | . . . Parts Stolen . | . . . Parts Stripped . | . . . Power Chain Reactions . | . . . Alert | -11 -10 -10 ------- Run | Yrd Mat Min Peak Influence 396 | 10 396 206 Initial 96 | . 6 96 Average 144 | 2 184 126 Maximum Alert Level 1 | . 1 1 Low Security (%) 69 | 100 53 78 Level 1 30 | . 46 21 Level 2 . | . . . Level 3 . | . . . Level 4 . | . . . Level 5 . | . . . High Security . | . . . Max Security . | . . . Squads Dispatched 2 | . 2 . Investigation 2 | . 2 . Extermination . | . . . Reinforcement . | . . . Assault . | . . . Garrison . | . . . Intercept . | . . . Searches Triggered . | . . . Construction Impeded . | . . . Haulers Reinforced . | . . . Active Scanning Responses . | . . . Cargo Convoy Interrupts . | . . . Stealth | -11 -10 -10 --------- Run | Yrd Mat Min Distress Signals 2 | . 1 1 Communications Jammed . | . . . Distress Signals . | . . . Times Spotted 37 | . 20 17 Peak Tracking Total 7 | . 6 7 Tactical Retreats 2 | . . 2 Traps | -11 -10 -10 ------- Run | Yrd Mat Min Traps Triggered . | . . . Indirectly . | . . . Trap Hack Attempts . | . . . Triggered . | . . . Disarmed . | . . . Reprogrammed . | . . . Reused . | . . . Traps Extracted . | . . . Installed . | . . . Triggered . | . . . Machines | -11 -10 -10 ---------- Run | Yrd Mat Min Machines Disabled 1 | . 1 . Max in Single Turn 1 | . 1 . Machines Repaired . | . . . Machines Dismantled . | . . . Machines Sabotaged . | . . . Overloaded Fab Kills . | . . . Hacking | -11 -10 -10 --------- Run | Yrd Mat Min Machines Accessed 6 | . 6 . Terminals 4 | . 4 . Fabricators . | . . . Repair Stations . | . . . Recycling Units 2 | . 2 . Scanalyzers . | . . . Garrison Access . | . . . Total Hacks 19 | . 19 . Successful 9 | . 9 . Failed 9 | . 9 . Catastrophic . | . . . Database Lockouts 1 | . 1 . Manual 18 | . 18 . Terminals 17 | . 17 . Fabricators . | . . . Repair Stations . | . . . Recycling Units 2 | . 2 . Scanalyzers . | . . . Garrison Access . | . . . Terminal Hacks 4 | . 4 . Robot Analysis 1 | . 1 . Prototype ID Bank 1 | . 1 . Recycling Unit Index 1 | . 1 . Locate Traps 1 | . 1 . Fabricator Hacks . | . . . Repair Station Hacks . | . . . Recycling Unit Hacks . | . . . Scanalyzer . | . . . Garrison Access Hacks . | . . . Unauthorized Hacks 5 | . 5 . Terminals 3 | . 3 . Track 1 | . 1 . Botnet 2 | . 2 . Fabricators . | . . . Repair Stations . | . . . Recycling Units 2 | . 2 . Tunnel 2 | . 2 . Scanalyzers . | . . . Garrison Access . | . . . Data Cores Recovered . | . . . Used . | . . . Hacking Detections 4 | . 4 . Full Trace Events . | . . . Feedback Events . | . . . Feedback Blocked . | . . . Robot Schematics Acquired . | . . . Robots Built . | . . . Authchips . | . . . Time . | . . . Total Robot Build Rating . | . . . Part Schematics Acquired . | . . . Parts Built . | . . . Authchips . | . . . Time . | . . . Total Part Build Rating . | . . . Parts Repaired . | . . . Time . | . . . Parts Recycled . | . . . Recycled Matter . | . . . Retrieved Matter . | . . . Retrieved Components . | . . . Parts Scanalyzed . | . . . Part Schematics Acquired . | . . . Parts Damaged . | . . . Bothacking | -11 -10 -10 ------------ Run | Yrd Mat Min Used RIF Installer . | . . . Robots Hacked . | . . . Non-combat . | . . . Combat . | . . . Robot Hacks Applied . | . . . Relay Couplers Released . | . . . Fabnet Peak Effective % . | . . . Robots Rewired . | . . . Allies Hacked . | . . . Hacks Repelled . | . . . Allies | -11 -10 -10 -------- Run | Yrd Mat Min Total Allies . | . . . Largest Group . | . . . Highest-Rated Group . | . . . Highest-Rated Ally . | . . . Total Orders . | . . . Ally Attacks . | . . . Total Damage . | . . . Kills . | . . . Allies Corrupted . | . . . Allies Melted . | . . . Intel | -11 -10 -10 ------- Run | Yrd Mat Min Robot Analysis Total 1 | . 1 . Derelict Logs Recovered . | . . . Drone Launches . | . . . Drone Recoveries . | . . . Exploration | -11 -10 -10 ------------- Run | Yrd Mat Min Turns Passed 1155 | 63 501 591 Spaces Moved 831 | 42 358 431 Core 19 | 19 . . Treads . | . . . Legs . | . . . Wheels 812 | 23 358 431 Hover . | . . . Flight . | . . . Fastest Speed 50 | 50 80 95 Average Speed 93 | 66 93 95 Slowest Speed 125 | 80 115 125 Overloaded Moves . | . . . Propulsion Burnouts . | . . . Robots Hopped . | . . . Cave-ins Triggered . | . . . Exploration Rate (%) 43 | 4 65 60 Regions Visited 2 Branch Regions 1 Pre-discovered Areas 2 | . 2 . Known Exits Taken . | . . . Unknown Exits Taken 2 | 1 1 . Scrap Searched . | . . . Spaces Dug 2 | . . 2 Terrain Destroyed 3 | . . 3 Melee . | . . . Projectile 3 | . . 3 AOE . | . . . Terrain Rammed . | . . . Walls Destroyed . | . . . Machines Disabled . | . . . Actions | -11 -10 -10 --------- Run | Yrd Mat Min Total 1017 | 65 445 507 Wait 9 | . 5 4 Move 829 | 41 357 431 Hop . | . . . Pick Up 23 | 9 13 1 Fast Attach 11 | 5 2 4 Attach 12 | 2 3 7 Detach 2 | . . 2 Swap 25 | 1 12 12 Drop 13 | 1 12 . Fire 93 | 6 41 46 Melee . | . . . Ram . | . . . Kick . | . . . Crush . | . . . Escape Stasis . | . . . Rewire . | . . . Trap . | . . . Miscellaneous . | . . . Route ------- -11/Scrapyard -10/Materials -10/Mines (discovered 3 exits: [*Mat x2] / [*Sub]) History --------- Turn | Location | Event 11 | -11/Scrapyard | Discovered new exit (range 15) 64 | -11/Scrapyard | Entered Materials 200 | -10/Materials | Discovered new exit (range 10) 206 | -10/Materials | Central database locked down 339 | -10/Materials | Build established: Mutant 565 | -10/Materials | Entered Mines 659 | -10/Mines | Discovered new exit (range 4) 744 | -10/Mines | Assembled infested the area 749 | -10/Mines | Assisted by a Guerilla fighting off Assembled 770 | -10/Mines | Core integrity fell below 50% 782 | -10/Mines | Core integrity fell below 20% 812 | -10/Mines | Lost 5 parts (1p2n1u1w) 830 | -10/Mines | Discovered new exit (range 10) 1086 | -10/Mines | Discovered new exit (range 15) 1156 | -10/Mines | Destroyed by as-06123 with Assembled F-torch Last Messages --------------- 01012_ Acquired 13 matter. 01014_ Acquired Lgt. Ion Engine. 01017_ Acquired 10 matter. 01043_ R-06 Scavenger collects Wheel. 01050_ T-07 Excavator destroyed. 01053_ Acquired 3 matter. 01086_ EXIT=FOUND 01086_ T-07 Excavator destroyed. 01087_ as-80332 destroyed. 01095_ Acquired 23 matter. 01098_ Acquired 2 matter. 01100_ as-40363 destroyed. 01103_ as-69628 destroyed. 01108_ Acquired 7 matter. 01117_ Imp. Medium Laser destroyed. 01120_ Acquired 10 matter. 01144_ as-66544 destroyed. 01144_ Switching to secondary target: as-08459. 01147_ as-08459 destroyed. 01147_ Switching to secondary target: as-06123. Map ----- +----------------------------------------------------+ | ????????????????????????????????????????? | | ????????????????????????????????????????? | | ????????????????????????????????????????? | | ????????????????????????????????????????? | | ????????????????????????????????????????? | | ????????????????????????????????????????? | | ????????????????????????????????????????? | | ????????????????????????????????????????? | | ### ? ##???????????????????????????????? | | #### ###??????????????????????????????? | | % ###?????????????????????????????? | | #### % ##?????????????????????????????? | | ### ??? ##?????????????????????????????? | | #???????????????????????????????????????? | | #???????????????????????????????????????? | | #??????????????#######??????????????????? | | #?????????????#########?????????????????? | | ##????????????### ####????????????????? | | ###??????????? ##### ##???????????? | | ################% #### ##???????????? | | ############### = ##???????????? | | *%! % ##???????????? | | %! |%=!! ##????###???????????? | | ################ #########????????????? | | ############### ##########????????????? | | #?????????### a %@##????????????? | | ##????????## ####### ##????????????? | | ##???????### #######%##????????????? | | ###???????## % ##????????????? | | ###?????? """ ###### ##????????????? | | ##????? """ ###### ##????????????? | | ?????? """ ##??## ##????????????? | | ????? ### """ ##??## ##????????????? | | ????? ##### ??? #??## ##????????????? | | ?????######### ??? #??## ##????????????? | | ?????#####??## ?? ##?? ????????????? | | ????????????###??####??? ?????????????? | | ?????????????????####??? ""?????????????? | | ???????????????????????? ""?????????????? | | ???????????????????????? ""?????????????? | | ???????????????????????? ???????????????? | | ??????????????????????? ??????????????? | | ???????????????????????###??????????????? | | ???????????????????????###??????????????? | | | | | | | | | | | | | +----------------------------------------------------+ Best States ------------- Heat Dissipation 35 Energy Generation 10 Energy Capacity 250 Matter Stores 300 Matter Capacity 300 Sight Range 16 Terrain Scan Range 16 Terrain Scan Density 10 Evasion (%) 50 Recoil Reduction 1 Item Schematics ----------------- None Robot Schematics ------------------ None Fabricated ------------ Nothing Alien Tech Used ----------------- None Achievements -------------- None Challenges ------------ None Game ------ Seed ArmorRefineryReconstructor Manual? 0 Play Time 00:14:06 Cumulative 1065.2 hours Start 2024.03.17 @ 11:38:00 End 2024.03.17 @ 11:50:29 Sessions 1 Manual Loads 0 Difficulty Rogue Special Mode None Game No. 535 Rogue 408 Adventurer 125 Explorer 2 Win Type - Total 128 Types 99/10/9/3/3/0/0/2/2 Lore% 82 Gallery% 90 Achievement% 84 Wizard Run 0 Options --------- Layout 0 ASCII 0 Keyboard 1 Movement Numpad Keybinds 0 Fullscreen 1 Font 36/Terminus++ Map View 76x50 Zoom Use 0% Tactical HUD 1 Map Filters NONE Filters NONE Steam 1 RUN: 9c2f52cf-e450-4506-b4cb-c7b8485ae7f6